Cogmind - Beta 13 @@@ ROGUE MODE // 2024.05.10 @ 04:14:06 Player: HourglassMan Result: Destroyed by 7H-JMP(z) with Zionite Laser-S Performance ------------- Evolutions (1) 500 Regions Visited (6) 1200 Robots Destroyed (4) 20 Value Destroyed (46) 46 Prototype IDs (0) 0 Alien Tech Used (0) 0 Bonus (200) 200 TOTAL SCORE: 1966 Bonus ------- Pacifist 200 Cogmind --------- Core Integrity 0/400 Matter 224/300 Energy 147/350 System Corruption 0% Temperature Cool (17) Movement Core (200) Ox3 Location -7/Deep Caves Parts ------- > --- POWER (1) -------- (None) > --- PROPULSION (4) --- (None) > --- UTILITY (2) ------ Small Storage Unit High-capacity Battery > --- WEAPON (2) ------- Ripper > --- INVENTORY (8) ---- Light Ion Engine Small Storage Unit Visual Processing Unit Sensor Array Sensor Array Particle Cannon Peak State ------------ > --- POWER ------------ (None) > --- PROPULSION ------- Light Treads Aluminum Leg Titanium Leg > --- UTILITY ---------- Small Storage Unit High-capacity Battery > --- WEAPON ----------- Arc Projector Minigun > --- INVENTORY -------- Light Ion Engine Small Storage Unit Visual Processing Unit Sensor Array Sensor Array Particle Cannon Assault Rifle Ripper [Rating: 15] Favorites ----------- Power Light Ion Engine Engine Light Ion Engine Propulsion Light Treads Treads Light Treads Leg Aluminum Leg Utility Small Storage Unit Device Sensor Array Storage Small Storage Unit Weapon Assault Rifle Energy Gun Arc Projector Ballistic Gun Assault Rifle Slashing Weapon Ripper Build | -11 -10 -10 -9 -9 -7 -7 ------- Run | Yrd Mat Min Mat Min Zio Dee Slots Evolved 2 | . . . 2 . . . Power . | . . . . . . . Propulsion 2 | . . . 2 . . . Utility . | . . . . . . . Weapon . | . . . . . . . Parts Attached 19 | 6 3 . 4 . 2 4 Power 1 | 1 . . . . . . Engine 1 | 1 . . . . . . Core . | . . . . . . . Reactor . | . . . . . . . Propulsion 5 | 2 . . 2 . 1 . Treads 2 | 2 . . . . . . Leg 3 | . . . 2 . 1 . Wheel . | . . . . . . . Hover . | . . . . . . . Flight . | . . . . . . . Utility 7 | 1 3 . 2 . . 1 Device 1 | . 1 . . . . . Storage 6 | 1 2 . 2 . . 1 Processor . | . . . . . . . Hackware . | . . . . . . . Protection . | . . . . . . . Artifact . | . . . . . . . Weapon 6 | 2 . . . . 1 3 Energy Gun 1 | . . . . . . 1 Energy Cannon . | . . . . . . . Ballistic Gun 4 | 2 . . . . 1 1 Ballistic Cannon . | . . . . . . . Launcher . | . . . . . . . Special Weapon . | . . . . . . . Impact Weapon . | . . . . . . . Slashing Weapon 1 | . . . . . . 1 Piercing Weapon . | . . . . . . . Special Melee Weapon . | . . . . . . . Unidentified Prototypes . | . . . . . . . Parts Lost 8 | . . . . . . 8 Power 1 | . . . . . . 1 Propulsion 4 | . . . . . . 4 Utility . | . . . . . . . Weapon 3 | . . . . . . 3 Highest Loss Streak 7 | . . . . . . 7 To Critical Strikes . | . . . . . . . Average Slot Usage (%) 98 | . 98 100 100 100 99 87 Engine 10 | . 14 14 11 11 11 2 Treads 20 | . 28 28 22 22 17 10 Leg 18 | . . . 22 22 26 30 Device 10 | . 13 14 11 11 11 1 Storage 13 | . 14 14 11 11 11 20 Ballistic Gun 23 | . 28 28 22 22 21 20 Naked Turns . | . . . . . . . Heaviest Build 88 | 12 88 13 13 13 14 17 Greatest Support 40 | 40 40 40 20 20 37 37 Greatest Overweight (x) 2 | . 2 . . . . 2 Average Overweight (x) . | . . . . . . . Largest Inventory Capacity 25 | 8 25 8 25 8 8 8 Average Capacity 8 | 7 8 8 8 8 8 8 Most Carried 8 | 6 8 8 8 8 8 8 Average Carried 7 | 3 7 8 6 8 7 7 Final Capacity 8 | 8 8 8 8 8 8 8 Final Carried 8 | 6 8 8 8 8 8 6 Class Distribution -------------------- 100% | Mutant Dominant Class ---------------- Mutant | -10/Materials Mutant | -10/Mines Mutant | -9/Materials Mutant | -9/Mines Mutant | -7/Zion Mutant | -7/Deep Caves Resources | -11 -10 -10 -9 -9 -7 -7 ----------- Run | Yrd Mat Min Mat Min Zio Dee Matter Collected 429 | 232 . 24 53 18 55 47 Remotely . | . . . . . . . Salvage Created 116 | . . . 69 . . 47 Parts 5 | . . . 5 . . . Haulers Intercepted . | . . . . . . . Recyclers Shooed . | . . . . . . . Parts Field Recycled . | . . . . . . . Retrieved Matter . | . . . . . . . Parts Self-Destructed . | . . . . . . . Prevented . | . . . . . . . Kills | -11 -10 -10 -9 -9 -7 -7 ------- Run | Yrd Mat Min Mat Min Zio Dee Combat Hostiles Destroyed 6 | . . . 3 . . 3 Guns 6 | . . . 3 . . 3 Classes Destroyed 3 | . . . 2 . . 1 Watcher 1 | . . . 1 . . . Swarmer 3 | . . . 3 . . . Assembled 3 | . . . . . . 3 Best Kill Streak 2 | . . . 2 . . 2 Combat Bots Only 2 | . . . 2 . . 2 Max Kills in Single Turn 2 | . . . 2 . . 2 Gunslinging 1 | . . . 1 . . 1 Exploded . | . . . . . . . Melee . | . . . . . . . Uniques/NPCs Destroyed . | . . . . . . . Combat | -11 -10 -10 -9 -9 -7 -7 -------- Run | Yrd Mat Min Mat Min Zio Dee Hostile Shots Fired 96 | . 3 . 16 1 . 76 Missed 34 | . 2 . 5 1 . 26 Damage Taken 1490 | . 17 . 86 . . 1387 Core 433 | . 17 . 34 . . 382 Absorbed by Shields . | . . . . . . . Regen/Repaired (Parts) 52 | . . . . . 52 . Core Remaining (%) 96 | 100 . 93 . . . . Volleys Fired 27 | . . . 9 . . 18 Largest 2 | . . . 2 . . 2 Hottest 80 | . . . 40 . . 80 Shots Fired 54 | . . . 18 . . 36 Gun 54 | . . . 18 . . 36 Cannon . | . . . . . . . Launcher . | . . . . . . . Special . | . . . . . . . Kinetic 52 | . . . 18 . . 34 Thermal . | . . . . . . . Explosive . | . . . . . . . Electromagnetic 2 | . . . . . . 2 Robot Hit Streak 7 | . . . 7 . . 3 Robot Miss Streak 5 | . . . 2 . . 5 Penetration Max . | . . . . . . . Secondary Targets 2 | . . . 1 . . 1 Max Gunslinging Chain 1 | . . . 1 . . 1 Shots Hit Robots 28 | . . . 13 . . 15 Core Hits 11 | 1 . . 4 . . 6 Critical Kills . | . . . . . . . Critical Parts Destroyed . | . . . . . . . Critical Strikes . | . . . . . . . Melee Attacks 1 | . . . . . . 1 Impact . | . . . . . . . Slashing 1 | . . . . . . 1 Piercing . | . . . . . . . Sneak Attacks . | . . . . . . . Combat Hostiles . | . . . . . . . Follow-up Attacks . | . . . . . . . Damage Inflicted 412 | 2 . 2 159 12 . 237 Guns 389 | . . . 152 . . 237 Cannons . | . . . . . . . Explosions . | . . . . . . . Melee . | . . . . . . . Ramming 23 | 2 . 2 7 12 . . Kinetic 389 | . . . 152 . . 237 Thermal . | . . . . . . . Explosive . | . . . . . . . Electromagnetic . | . . . . . . . Impact . | . . . . . . . Slashing . | . . . . . . . Piercing . | . . . . . . . Highest Corruption . | . . . . . . . Average Corruption . | . . . . . . . Corruption Purged . | . . . . . . . Corruption Blocked . | . . . . . . . Overload Shots . | . . . . . . . Overflow Damage . | . . . . . . . Projectiles . | . . . . . . . Explosions . | . . . . . . . Melee . | . . . . . . . Knockbacks . | . . . . . . . Impact . | . . . . . . . Kinetic . | . . . . . . . Secondary . | . . . . . . . Self-Inflicted Damage . | . . . . . . . Shots . | . . . . . . . Rammed 3 | 2 . 1 . . . . Targets Rammed 5 | 2 . 1 1 1 . . Kicked 2 | . . . 1 1 . . Crushed . | . . . . . . . Highest Temperature 101 | . . . . . . 101 Average Temperature 50 | . . . . . . 50 Received Heat Transfer 315 | . 9 . . . . 306 Siege Activations . | . . . . . . . Robots Corrupted . | . . . . . . . Combat Hostiles . | . . . . . . . Parts Fried . | . . . . . . . Impact Corruptions . | . . . . . . . Robots Melted . | . . . . . . . Combat Hostiles . | . . . . . . . Parts Melted . | . . . . . . . Heat Transferred . | . . . . . . . Parts Sabotaged . | . . . . . . . Parts Stolen . | . . . . . . . Parts Stripped . | . . . . . . . Power Chain Reactions . | . . . . . . . Alert | -11 -10 -10 -9 -9 -7 -7 ------- Run | Yrd Mat Min Mat Min Zio Dee Peak Influence 107 | . . . 107 56 . . Initial 41 | . . . . 41 . . Average 19 | . . . 54 42 . . Maximum Alert Level . | . . . . . . . Low Security (%) 100 | 100 100 100 100 100 . . Level 1 . | . . . . . . . Level 2 . | . . . . . . . Level 3 . | . . . . . . . Level 4 . | . . . . . . . Level 5 . | . . . . . . . High Security . | . . . . . . . Max Security . | . . . . . . . Squads Dispatched 1 | . 1 . . . . . Investigation . | . . . . . . . Extermination . | . . . . . . . Reinforcement 1 | . 1 . . . . . Assault . | . . . . . . . Garrison . | . . . . . . . Intercept . | . . . . . . . Searches Triggered . | . . . . . . . Construction Impeded . | . . . . . . . Haulers Reinforced . | . . . . . . . Active Scanning Responses . | . . . . . . . Cargo Convoy Interrupts . | . . . . . . . Stealth | -11 -10 -10 -9 -9 -7 -7 --------- Run | Yrd Mat Min Mat Min Zio Dee Distress Signals 2 | . 1 . 1 . . . Communications Jammed . | . . . . . . . Distress Signals . | . . . . . . . Times Spotted 20 | . 4 . 6 4 . 6 Peak Tracking Total 10 | . 10 . 3 3 . 3 Tactical Retreats 1 | . . . . 1 . . Traps | -11 -10 -10 -9 -9 -7 -7 ------- Run | Yrd Mat Min Mat Min Zio Dee Traps Triggered . | . . . . . . . Indirectly . | . . . . . . . Trap Hack Attempts . | . . . . . . . Triggered . | . . . . . . . Disarmed . | . . . . . . . Reprogrammed . | . . . . . . . Reused . | . . . . . . . Traps Extracted . | . . . . . . . Installed . | . . . . . . . Triggered . | . . . . . . . Machines | -11 -10 -10 -9 -9 -7 -7 ---------- Run | Yrd Mat Min Mat Min Zio Dee Machines Disabled . | . . . . . . . Max in Single Turn . | . . . . . . . Machines Repaired . | . . . . . . . Machines Dismantled . | . . . . . . . Machines Sabotaged . | . . . . . . . Overloaded Fab Kills . | . . . . . . . Hacking | -11 -10 -10 -9 -9 -7 -7 --------- Run | Yrd Mat Min Mat Min Zio Dee Machines Accessed 2 | . 1 . 1 . . . Terminals . | . . . . . . . Fabricators . | . . . . . . . Repair Stations . | . . . . . . . Recycling Units 2 | . 1 . 1 . . . Scanalyzers . | . . . . . . . Garrison Access . | . . . . . . . Total Hacks 2 | . 1 . 1 . . . Successful 2 | . 1 . 1 . . . Failed . | . . . . . . . Catastrophic . | . . . . . . . Database Lockouts . | . . . . . . . Manual 10 | . . . . . 10 . Terminals . | . . . . . . . Fabricators . | . . . . . . . Repair Stations . | . . . . . . . Recycling Units 2 | . 1 . 1 . . . Scanalyzers . | . . . . . . . Garrison Access . | . . . . . . . Terminal Hacks . | . . . . . . . Fabricator Hacks . | . . . . . . . Repair Station Hacks . | . . . . . . . Recycling Unit Hacks 2 | . 1 . 1 . . . Report Inventory 2 | . 1 . 1 . . . Scanalyzer . | . . . . . . . Garrison Access Hacks . | . . . . . . . Unauthorized Hacks . | . . . . . . . Terminals . | . . . . . . . Fabricators . | . . . . . . . Repair Stations . | . . . . . . . Recycling Units . | . . . . . . . Scanalyzers . | . . . . . . . Garrison Access . | . . . . . . . Data Cores Recovered . | . . . . . . . Used . | . . . . . . . Hacking Detections 1 | . . . 1 . . . Full Trace Events . | . . . . . . . Feedback Events . | . . . . . . . Feedback Blocked . | . . . . . . . Robot Schematics Acquired . | . . . . . . . Robots Built . | . . . . . . . Authchips . | . . . . . . . Time . | . . . . . . . Total Robot Build Rating . | . . . . . . . Part Schematics Acquired . | . . . . . . . Parts Built . | . . . . . . . Authchips . | . . . . . . . Time . | . . . . . . . Total Part Build Rating . | . . . . . . . Parts Repaired . | . . . . . . . Time . | . . . . . . . Parts Recycled . | . . . . . . . Recycled Matter . | . . . . . . . Retrieved Matter . | . . . . . . . Retrieved Components . | . . . . . . . Parts Scanalyzed . | . . . . . . . Part Schematics Acquired . | . . . . . . . Parts Damaged . | . . . . . . . Bothacking | -11 -10 -10 -9 -9 -7 -7 ------------ Run | Yrd Mat Min Mat Min Zio Dee Used RIF Installer . | . . . . . . . Robots Hacked . | . . . . . . . Non-combat . | . . . . . . . Combat . | . . . . . . . Robot Hacks Applied . | . . . . . . . Relay Couplers Released . | . . . . . . . Fabnet Peak Effective % . | . . . . . . . Robots Rewired . | . . . . . . . Allies Hacked . | . . . . . . . Hacks Repelled . | . . . . . . . Allies | -11 -10 -10 -9 -9 -7 -7 -------- Run | Yrd Mat Min Mat Min Zio Dee Total Allies . | . . . . . . . Largest Group . | . . . . . . . Highest-Rated Group . | . . . . . . . Highest-Rated Ally . | . . . . . . . Total Orders . | . . . . . . . Ally Attacks . | . . . . . . . Total Damage . | . . . . . . . Kills . | . . . . . . . Allies Corrupted . | . . . . . . . Allies Melted . | . . . . . . . Intel | -11 -10 -10 -9 -9 -7 -7 ------- Run | Yrd Mat Min Mat Min Zio Dee Robot Analysis Total . | . . . . . . . Derelict Logs Recovered 2 | . . 1 . . 1 . Drone Launches . | . . . . . . . Drone Recoveries . | . . . . . . . Exploration | -11 -10 -10 -9 -9 -7 -7 ------------- Run | Yrd Mat Min Mat Min Zio Dee Turns Passed 1596 | 105 140 284 193 140 546 188 Spaces Moved 1113 | 57 82 176 130 116 446 106 Core 9 | 3 . . . . . 6 Treads 312 | 54 82 176 . . . . Legs 792 | . . . 130 116 446 100 Wheels . | . . . . . . . Hover . | . . . . . . . Flight . | . . . . . . . Fastest Speed 50 | 50 160 160 120 120 120 123 Average Speed 132 | 154 161 160 120 120 121 124 Slowest Speed 320 | 160 320 160 120 120 123 150 Overloaded Moves . | . . . . . . . Propulsion Burnouts . | . . . . . . . Robots Hopped . | . . . . . . . Cave-ins Triggered . | . . . . . . . Exploration Rate (%) 34 | 4 22 70 10 48 61 27 Regions Visited 6 Branch Regions 4 Pre-discovered Areas 2 | . . . . . 2 . Known Exits Taken . | . . . . . . . Unknown Exits Taken 6 | 1 1 1 1 1 1 . Scrap Searched 6 | . . 1 . 1 4 . Spaces Dug . | . . . . . . . Terrain Destroyed . | . . . . . . . Melee . | . . . . . . . Projectile . | . . . . . . . AOE . | . . . . . . . Terrain Rammed . | . . . . . . . Walls Destroyed . | . . . . . . . Machines Disabled . | . . . . . . . Actions | -11 -10 -10 -9 -9 -7 -7 --------- Run | Yrd Mat Min Mat Min Zio Dee Total 1182 | 70 89 178 149 116 451 129 Wait . | . . . . . . . Move 1108 | 57 81 175 129 115 445 106 Hop . | . . . . . . . Pick Up 15 | 6 3 1 4 . 1 . Fast Attach 9 | 6 1 . . . 2 . Attach 4 | . . . 2 . . 2 Detach . | . . . . . . . Swap 6 | . 2 . 2 . . 2 Drop 8 | . 2 1 2 . 3 . Fire 27 | . . . 9 . . 18 Melee 1 | . . . . . . 1 Ram . | . . . . . . . Kick 2 | . . . 1 1 . . Crush 2 | 1 . 1 . . . . Escape Stasis . | . . . . . . . Rewire . | . . . . . . . Trap . | . . . . . . . Miscellaneous . | . . . . . . . Route ------- -11/Scrapyard -10/Materials -10/Mines (discovered 2 exits: *Mat x2) -9/Materials -9/Mines -7/Zion -7/Deep Caves History --------- Turn | Location | Event 22 | -11/Scrapyard | Discovered new exit (range 16) 106 | -11/Scrapyard | Entered Materials 216 | -10/Materials | Discovered new exit (range 14) 246 | -10/Materials | Entered Mines 262 | -10/Mines | Discovered new exit (range 9) 318 | -10/Mines | Build established: Mutant 374 | -10/Mines | Learned Materials interactive machine intel 474 | -10/Mines | A weapon hastily lodged in a ceiling crevice suddenly fell to the ground 514 | -10/Mines | Discovered new exit (range 9) 530 | -10/Mines | Entered Materials 530 | -9/Materials | Evolved 2 slots: Propulsion x2 531 | -9/Materials | Loaded intel: 16 interactive machine locations 701 | -9/Materials | Discovered new exit (range 9) 723 | -9/Materials | Entered Mines 766 | -9/Mines | Met a Derelict bent on vengeance 856 | -9/Mines | A Derelict revealed a hidden shortcut to a safe place 863 | -9/Mines | Entered Zion 949 | -7/Zion | Visited the Megawrench Repair Shop 949 | -7/Zion | Megawrench repaired 4 parts 1051 | -7/Zion | Learned location of Extension (-4) 1059 | -7/Zion | Acquired unknown access codes intercepted by a Zionite 1169 | -7/Zion | Learned location of Armory (-4) 1384 | -7/Zion | Opened final containment barrier to the Deep Caves 1405 | -7/Zion | Discovered new exit (range 3) 1405 | -7/Zion | Saw the warning signs outside the Deep Caves entrance 1409 | -7/Zion | Entered Deep Caves 1556 | -7/Deep Caves | Attacked by Z-Imprinter 1559 | -7/Deep Caves | Z-Facility disabled 1591 | -7/Deep Caves | Core integrity fell below 50% 1597 | -7/Deep Caves | Core integrity fell below 20% 1597 | -7/Deep Caves | Destroyed by 7H-JMP(z) with Zionite Laser-S Last Messages --------------- as-89949 destroyed. Switching to secondary target: as-68527. as-68527 destroyed. Acquired 10 matter. Lgt. Ion Engine destroyed. Destroyed Asb. Hover Unit. as-05050 destroyed. Acquired 17 matter. Acquired 20 matter. NEW_ZION: Z-Facility proximity alert. Z-Imprinter: GET AWAY FROM HERE! I've worked too hard for our future just to have you ruin everything! Z-Facility disabled. Aluminum Leg destroyed. Titanium Leg destroyed. Minigun destroyed. Arc Projector destroyed. Lgt. Treads destroyed. Assault Rifle destroyed. Map ----- +----------------------------------------------------+ | | | | | | | | | | | | | | | | | | | | | | | | | | | | | ?????????????????????????????????????????????????? | | ??????????????????###############????????????????? | | ???????????????#### ##???????????????? | | ??????????????## #????#??????????? | | ??????????#??## ###### ##?????### | | ?????????## ## ## # #???### | | ????? #" ##### | | ????? | | ???? z | | ???? z | | ???? I | | ???? """"" @"" | | ?????? """"""""" """" | | ??????????? """""""""""" | | ?????????????? """""""""""""" | | ???????????????""""""""""" | | ????????????????"""""""""""" | | ???????????????????"""""""""" | | ???????????????????????"""""" | | ????????????????????????""""" | | ??????????????????????"" " " | | ??????????????????????""" | | ?????????????????????""" | | ?????????????????????"""" | | ?????????????????????"""" | | ??????????????????????""""" | | ??????????????????????""""""" | | ??????????????????????? | | ???????????????????????? """ | | ????????????????????????"?""" | | ??????????????????????????"""" | | ????????????????????????????"" | | ?????????????????????????????" | | ????????????????????????????? ?? | | ?????????????????????????????? ???? | | ?????????????????????????????????????????????????? | +----------------------------------------------------+ Best States ------------- Heat Dissipation 28 Energy Generation 10 Energy Capacity 375 Matter Stores 300 Matter Capacity 300 Sight Range 16 Robot Scan Range 14 Terrain Scan Density 10 Evasion (%) 55 Recoil Reduction 2 Item Schematics ----------------- None Robot Schematics ------------------ None Fabricated ------------ Nothing Alien Tech Used ----------------- None Achievements -------------- Adventurer Signs Are For Wimps Challenges ------------ None Game ------ Seed MachineRegenerativeSteel Manual? 0 Play Time 00:14:24 Cumulative 11.0 hours Start 2024.05.10 @ 04:01:07 End 2024.05.10 @ 04:14:06 Sessions 1 Manual Loads 0 Difficulty Rogue Special Mode None Game No. 27 Rogue 27 Adventurer 0 Explorer 0 Win Type - Total 0 Types 0/0/0/0/0/0/0/0/0 Lore% 14 Gallery% 15 Achievement% 14 Wizard Run 0 Options --------- Layout 1 ASCII 0 Keyboard 1 Movement Numpad Keybinds 0 Fullscreen 1 Font 24/Smallcaps Map View 50x35 Zoom Use 16% Tactical HUD 0 Map Filters NONE Filters NONE Steam 1 RUN: 76f670f4-b378-4b9e-bd12-2f759faa6963